Workbook

Sheet 邳州分公司
A1: 收料登记表填报 日期 ：2019 年 5 月 5日 填表人 ：李凤
B2: 单位：江苏大力神管桩有限公司
A3: 序号 | B3: 到厂时间 | C3: 送料人相关信息 | I3: 物品相关信息（参数指标等） | U3: 结算信息 | X3: 检验员 | Y3: 过磅员 | Z3: 备注
B4: 时 分 | C4: 车号 | D4: 车主姓名 （客户） | E4: 司机姓名 | F4: 司机手机号 | G4: 所属车队 | H4: 磅单单号 | I4: 入库单号 | J4: 品名 | K4: 规格 | L4: 毛重t | M4: 皮重t | N4: 净重t | O4: 含水率% | P4: 含泥量% | Q4: 细度模数 | R4: 级配区/颗粒级配 | S4: 压碎值% | T4: 扣杂质t | U4: 结算重量 | V4: 单价/元 | W4: 金额/元
A5: 1 | B5: 17:47:00 | C5: 苏CGP356 | D5: 张赛赛 | E5: 张飞 | F5: 18251742399 | G5: 李海洋 | H5: 13225 | I5: WIN0050363 | J5: 机制砂 | K5: 中粗砂 | L5: 91.4 | M5: 21.48 | N5: 69.92 | O5: 6 | P5: 1.8 | Q5: 2.9 | R5: Ⅱ区 | T5: 1.42 | U5: 68.5 | V5: 119 | W5: =U5*V5 -> 8151.5 | X5: 王瑶瑶 | Y5: 马娜
A6: 2 | B6: 21:10:00 | C6: 鲁Q502BY | D6: 戴春宇 | E6: 王戈义 | F6: 15152016113 | G6: 段俊成 | H6: 13226 | I6: WIN0050366 | J6: 石子 | K6: 1-5# | L6: 72.64 | M6: 19.24 | N6: 53.4 | R6: 良好 | S6: 7 | T6: 0.5 | U6: 52.9 | V6: 98 | W6: 5184.2 | X6: 王瑶瑶 | Y6: 马娜
A7: 3 | B7: 21:16:00 | C7: 苏CCZ319 | D7: 庄猛 | E7: 刘军 | F7: 18251586223 | G7: 庄团结 | H7: 13227 | I7: WIN0050364 | J7: 机制砂 | K7: 中粗砂 | L7: 72.38 | M7: 16.68 | N7: 55.7 | O7: 6 | P7: 1.8 | Q7: 2.9 | R7: Ⅱ区 | T7: 1.2 | U7: 54.5 | V7: 119 | W7: 6485.5 | X7: 王瑶瑶 | Y7: 马娜
A8: 4 | B8: 21:24:00 | C8: 苏CHK123 | D8: 庄猛 | E8: 陈丁 | F8: 15252204580 | G8: 庄团结 | H8: 13228 | I8: WIN0050364 | J8: 机制砂 | K8: 中粗砂 | L8: 72.88 | M8: 16.98 | N8: 55.9 | O8: 6 | P8: 1.8 | Q8: 2.9 | R8: Ⅱ区 | T8: 0.2 | U8: 54.7 | V8: 119 | W8: 6509.3 | X8: 王瑶瑶 | Y8: 马娜
A9: 5 | B9: 21:27:00 | C9: 苏CHW072 | D9: 庄宁 | E9: 贾方乐 | F9: 18112214446 | G9: 庄团结 | H9: 13229 | I9: WIN0050364 | J9: 机制砂 | K9: 中粗砂 | L9: 75.4 | M9: 17.38 | N9: 58.02 | O9: 6 | P9: 1.8 | Q9: 2.9 | R9: Ⅱ区 | T9: 1.22 | U9: 56.8 | V9: 119 | W9: 6759.2 | X9: 王瑶瑶 | Y9: 马娜
A10: 6 | B10: 21:27:00 | C10: 苏CV9188 | D10: 庄二团 | E10: 白喜阳 | F10: 13370990088 | G10: 庄团结 | H10: 13230 | I10: WIN0050364 | J10: 机制砂 | K10: 中粗砂 | L10: 69.98 | M10: 17.48 | N10: 52.5 | O10: 6 | P10: 1.8 | Q10: 2.9 | R10: Ⅱ区 | T10: 1.1 | U10: 51.4 | V10: 119 | W10: 6116.6 | X10: 王瑶瑶 | Y10: 马娜
A11: 7 | B11: 21:32:00 | C11: 苏CHJ119 | D11: 庄二团 | E11: 刘照钱 | F11: 18751671739 | G11: 庄团结 | H11: 13231 | I11: WIN0050364 | J11: 机制砂 | K11: 中粗砂 | L11: 74.72 | M11: 17.6 | N11: 57.12 | O11: 6 | P11: 1.8 | Q11: 2.9 | R11: Ⅱ区 | T11: 1.22 | U11: 55.9 | V11: 119 | W11: 6652.1 | X11: 王瑶瑶 | Y11: 马娜
A12: 8 | B12: 21:45:00 | C12: 苏CDM071 | D12: 杜坤 | E12: 杜辉 | F12: 15062043488 | G12: 庄团结 | H12: 13232 | I12: WIN0050364 | J12: 机制砂 | K12: 中粗砂 | L12: 73.92 | M12: 17.22 | N12: 56.7 | O12: 6 | P12: 1.8 | Q12: 2.9 | R12: Ⅱ区 | T12: 1.2 | U12: 55.5 | V12: 119 | W12: 6604.5 | X12: 王瑶瑶 | Y12: 马娜
A13: 9 | B13: 21:47:00 | C13: 苏CH6588 | D13: 庄猛 | E13: 王志勇 | F13: 15852275790 | G13: 庄团结 | H13: 13233 | I13: WIN0050364 | J13: 机制砂 | K13: 中粗砂 | L13: 72.06 | M13: 17.06 | N13: 55 | O13: 6 | P13: 1.8 | Q13: 2.9 | R13: Ⅱ区 | T13: 1.1 | U13: 53.9 | V13: 119 | W13: 6414.1 | X13: 王瑶瑶 | Y13: 马娜
A14: 10 | B14: 21:49:00 | C14: 苏CU3668 | D14: 庄楠 | E14: 张凯 | F14: 18751667158 | G14: 庄团结 | H14: 13234 | I14: WIN0050364 | J14: 机制砂 | K14: 中粗砂 | L14: 70.66 | M14: 17.48 | N14: 53.18 | O14: 6 | P14: 1.8 | Q14: 2.9 | R14: Ⅱ区 | T14: 1.08 | U14: 52.1 | V14: 119 | W14: 6199.9 | X14: 王瑶瑶 | Y14: 马娜
A15: 11 | B15: 21:54:00 | C15: 鲁Q188BD | D15: 戴春宇 | E15: 李宋 | F15: 18913488722 | G15: 段俊成 | H15: 13235 | I15: WIN0050366 | J15: 石子 | K15: 1-5# | L15: 76.26 | M15: 19.38 | N15: 56.88 | R15: 良好 | S15: 7 | T15: 0.58 | U15: 56.3 | V15: 98 | W15: 5517.4 | X15: 王瑶瑶 | Y15: 马娜
A16: 12 | B16: 23:41:00 | C16: 鲁Q323CD | D16: 冯永盛 | E16: 卓昌银 | F16: 18168615153 | G16: 李海洋 | H16: 13228 | I16: WIN0050363 | J16: 机制砂 | K16: 中粗砂 | L16: 85.94 | M16: 23.44 | N16: 62.5 | O16: 7 | P16: 1.8 | Q16: 2.9 | R16: Ⅱ区 | T16: 1.9 | U16: 60.6 | V16: 119 | W16: 7211.4 | X16: 王瑶瑶 | Y16: 马娜
A17: 13 | B17: 00:21:00 | C17: 苏CJA596 | D17: 李海洋 | E17: 李海洋 | F17: 15005229789 | G17: 李海洋 | H17: 退货 | J17: 镍砂 | K17: 中粗砂 | X17: 王瑶瑶 | Y17: 马娜 | Z17: 含粉量10%，退货
A18: 14 | B18: 00:27:00 | C18: 苏C9T292 | D18: 庄尚 | E18: 程宁 | F18: 18751665165 | G18: 庄团结 | H18: 退货 | J18: 镍砂 | K18: 中粗砂 | X18: 王瑶瑶 | Y18: 马娜 | Z18: 含粉量10%，退货
A19: 15 | B19: 00:35:00 | C19: 苏CJY880 | D19: 庄团结 | E19: 吕鹏 | F19: 15190796222 | G19: 庄团结 | H19: 退货 | J19: 镍砂 | K19: 中粗砂 | X19: 王瑶瑶 | Y19: 马娜 | Z19: 含粉量10%，退货
A20: 16 | B20: 00:37:00 | C20: 苏CGP356 | D20: 张赛赛 | E20: 张飞 | F20: 18251742399 | G20: 李海洋 | H20: 13242 | I20: WIN0050363 | J20: 机制砂 | K20: 中粗砂 | L20: 92.34 | M20: 21.54 | N20: 70.8 | O20: 7 | P20: 1.8 | Q20: 2.9 | R20: Ⅱ区 | T20: 2.2 | U20: 68.6 | V20: 119 | W20: =U20*V20 -> 8163.4 | X20: 王瑶瑶 | Y20: 马娜
A21: 17 | B21: 00:41:00 | C21: 苏CGB136 | D21: 丙运军 | E21: 丙运军 | F21: 13629251378 | G21: 庄团结 | H21: 退货 | J21: 镍砂 | K21: 中粗砂 | X21: 王瑶瑶 | Y21: 马娜 | Z21: 含粉量10%，退货
A22: 18 | B22: 00:44:00 | C22: 冀B5378A | D22: 庄团驻 | E22: 庄团驻 | F22: 15852064444 | G22: 庄团结 | H22: 退货 | J22: 镍砂 | K22: 中粗砂 | X22: 王瑶瑶 | Y22: 马娜 | Z22: 含粉量10%，退货
A23: 19 | B23: 00:47:00 | C23: 苏CHJ376 | D23: 庄二团 | E23: 庄二团 | F23: 13952277209 | G23: 庄团结 | H23: 退货 | J23: 镍砂 | K23: 中粗砂 | X23: 王瑶瑶 | Y23: 马娜 | Z23: 含粉量10%，退货
A24: 20 | B24: 00:49:00 | C24: 苏CHC869 | D24: 丙赛 | E24: 丙赛 | F24: 13605222731 | G24: 庄团结 | H24: 退货 | J24: 镍砂 | K24: 中粗砂 | X24: 王瑶瑶 | Y24: 马娜 | Z24: 含粉量10%，退货
A25: 21 | B25: 00:52:00 | C25: 冀BW0521 | D25: 付学辉 | E25: 付学辉 | F25: 13805223296 | G25: 庄团结 | H25: 退货 | J25: 镍砂 | K25: 中粗砂 | X25: 王瑶瑶 | Y25: 马娜 | Z25: 含粉量10%，退货
A26: 22 | B26: 00:55:00 | C26: 苏CGK409 | D26: 庄楠 | E26: 庄汉斌 | F26: 13705222089 | G26: 庄团结 | H26: 退货 | J26: 镍砂 | K26: 中粗砂 | X26: 王瑶瑶 | Y26: 马娜 | Z26: 含粉量10%，退货
A27: 23 | B27: 01:41:00 | C27: 鲁D39525 | D27: 尹振刚 | E27: 尹振义 | F27: 13775858067 | G27: 庄团结 | H27: 13149 | I27: WIN0050364 | J27: 机制砂 | K27: 中粗砂 | L27: 79.6 | M27: 17.34 | N27: 62.26 | O27: 6 | P27: 1.8 | Q27: 2.9 | R27: Ⅱ区 | T27: 1.26 | U27: 61 | V27: 119 | W27: =U27*V27 -> 7259 | X27: 王瑶瑶 | Y27: 马娜
A28: 24 | B28: 06:37:00 | C28: 鲁Q522BG | D28: 戴春宇 | E28: 郑嘉磊 | F28: 15862121767 | G28: 李海洋 | H28: 13250 | I28: WIN0050365 | J28: 石子 | K28: 1-2# | L28: 102.68 | M28: 22.42 | N28: 80.26 | R28: 良好 | S28: 7 | T28: 0.56 | U28: 79.7 | V28: 98 | W28: =U28*V28 -> 7810.6 | X28: 王瑶瑶 | Y28: 马娜
N32: =SUM(N5:N31) -> 900.14 | U32: =SUM(U5:U31) -> 882.4 | W32: =SUM(W5:W31) -> 101038.7

Sheet 巨野分公司
A1: 收料登记表填报 日期 2019年 5 月 5 日 填表人 ：杨振华
B2: 单位：江苏大力神管桩有限公司巨野分公司
A3: 序号 | B3: 到厂时间 | C3: 送料人相关信息 | H3: 物品相关信息（参数指标等） | T3: 结算信息 | W3: 检验员 | X3: 过磅员 | Y3: 备注
B4: 时 分 | C4: 车号 | D4: 车主姓名 | E4: 司机姓名 | F4: 司机手机号 | G4: 所属车队 | H4: 入库单号 | I4: 品名 | J4: 规格 | K4: 毛重 | L4: 皮重 | M4: 净重 | N4: 含水率% | O4: 含泥量% | P4: 细度模数 | Q4: 级配区 | R4: 压碎值 | S4: 扣杂质t | T4: 结算重量 | U4: 单价 | V4: 金额
A5: 1 | B5: 05:47:00 | C5: 鲁RJ1282 | D5: 王彦钦 | E5: 徐龙福 | F5: 17753053016 | G5: 巨野中联 | H5: 013527 | I5: 水泥 | J5: PO42.5 | K5: 99.61 | L5: 28.19 | M5: =K5-L5 -> 71.42 | S5: 0.30% | T5: 71.2 | U5: 535 | V5: =T5*U5 -> 38092 | W5: 冯海英 | X5: 聂恒光
A6: 2 | B6: 05:50:00 | C6: 鲁RK1976 | D6: 王彦钦 | E6: 宋彦兵 | F6: 15966330156 | G6: 巨野中联 | H6: 013528 | I6: 水泥 | J6: PO42.5 | K6: 98.45 | L6: 25.95 | M6: 72.5 | S6: 0.30% | T6: 72.28 | U6: 535 | V6: 38669.8 | W6: 冯海英 | X6: 聂恒光
A7: 3 | B7: 07:07:00 | C7: 鲁RN9829 | D7: 魏翔远 | E7: 魏翔远 | F7: 15854038599 | G7: 英良运输 | H7: 013529 | I7: 石子 | J7: 1--2 | K7: 49.67 | L7: 16.19 | M7: 33.48 | S7: 0.2T | T7: 33.2 | U7: 97 | V7: 3220.4 | W7: 冯海英 | X7: 聂恒光
A8: 4 | B8: 07:09:00 | C8: 鲁RN5188 | D8: 李斌 | E8: 安孔青 | F8: 15163023899 | G8: 李广坤 | H8: 013230 | I8: 石子 | J8: 1--2 | K8: 26.45 | L8: 8.46 | M8: 17.99 | S8: 0.2T | T8: 17.7 | U8: 97 | V8: 1716.9 | W8: 冯海英 | X8: 聂恒光
A9: 5 | B9: 07:11:00 | C9: 鲁RL7377 | D9: 李斌 | E9: 常云龙 | F9: 18264007774 | G9: 李广坤 | H9: 013531 | I9: 石子 | J9: 1--2 | K9: 25.99 | L9: 8.44 | M9: 17.55 | S9: 0.2T | T9: 17.3 | U9: 97 | V9: 1678.1 | W9: 冯海英 | X9: 聂恒光
A10: 6 | B10: 07:13:00 | C10: 鲁RM2498 | D10: 魏庆如 | E10: 崔保东 | F10: 18953075722 | G10: 英良运输 | H10: 013532 | I10: 石子 | J10: 1--2 | K10: 49.91 | L10: 16.03 | M10: 33.88 | S10: 0.1T | T10: 33.7 | U10: 97 | V10: 3268.9 | W10: 冯海英 | X10: 聂恒光
A11: 7 | B11: 08:02:00 | C11: 鲁H29972 | D11: 刘运武 | E11: 刘运武 | F11: 15092851971 | G11: 刘运武 | H11: 013533 | I11: 带钢 | J11: 148*1.2 | K11: 48.95 | L11: 16.14 | M11: 32.81 | T11: 32.81 | V11: 0 | W11: 冯海英 | X11: 聂恒光
A12: 8 | B12: 10:34:00 | C12: 鲁HR3606 | D12: 李业举 | E12: 杜昌慈 | F12: 15053798399 | G12: 金利宏物流 | H12: 013534 | I12: 矿粉 | K12: 71.4 | L12: 16.99 | M12: 54.41 | S12: 0.30% | T12: 54.24 | U12: 370 | V12: 20068.8 | W12: 冯海英 | X12: 聂恒光
A13: 9 | B13: 12:36:00 | C13: 鲁RL7377 | D13: 李斌 | E13: 常云龙 | F13: 18264007774 | G13: 李广坤 | H13: 013535 | I13: 石子 | J13: 1--2 | K13: 26.18 | L13: 8.52 | M13: 17.66 | S13: 0.3T | T13: 17.3 | U13: 97 | V13: 1678.1 | W13: 冯海英 | X13: 聂恒光
A14: 10 | B14: 12:38:00 | C14: 鲁RN5188 | D14: 李斌 | E14: 安孔青 | F14: 15163023899 | G14: 李广坤 | H14: 013536 | I14: 石子 | J14: 1--2 | K14: 25.87 | L14: 8.53 | M14: 17.34 | S14: 0.3T | T14: 17 | U14: 97 | V14: 1649 | W14: 冯海英 | X14: 聂恒光
A15: 11 | B15: 12:41:00 | C15: 皖S56792 | D15: 陈平西 | E15: 吕长华 | F15: 18364082622 | G15: 英良运输 | H15: 013537 | I15: 机制沙 | J15: 中粗 | K15: 48.78 | L15: 16.32 | M15: 32.46 | S15: 0.1T | T15: 32.3 | U15: 139 | V15: 4489.7 | W15: 冯海英 | X15: 聂恒光
A16: 12 | B16: 12:43:00 | C16: 鲁RM3845 | D16: 陈长秋 | E16: 张先会 | F16: 15990979150 | G16: 英良运输 | H16: 013538 | I16: 机制沙 | J16: 中粗 | K16: 48.98 | L16: 15.05 | M16: 33.93 | S16: 0.1T | T16: 33.8 | U16: 139 | V16: 4698.2 | W16: 冯海英 | X16: 聂恒光
A17: 13 | B17: 13:05:00 | C17: 鲁PC6907 | D17: 陈长秋 | E17: 姚树习 | F17: 15753010056 | G17: 英良运输 | H17: 013539 | I17: 机制沙 | J17: 中粗 | K17: 45.97 | L17: 13.88 | M17: 32.09 | S17: 0.1T | T17: 31.9 | U17: 139 | V17: 4434.1 | W17: 冯海英 | X17: 聂恒光
A18: 14 | B18: 14:55:00 | C18: 鲁H63E30 | D18: 白传青 | E18: 白传青 | F18: 18854791828 | G18: 郑言克 | H18: 013540 | I18: 石子 | J18: 1--2 | K18: 49.19 | L18: 15.97 | M18: 33.22 | S18: 0.2T | T18: 33 | U18: 97 | V18: 3201 | W18: 冯海英 | X18: 聂恒光
A19: 15 | B19: 14:57:00 | C19: 鲁H78E87 | D19: 张庆刚 | E19: 张庆刚 | F19: 15853706592 | G19: 郑言克 | H19: 013541 | I19: 石子 | J19: 1--2 | K19: 49.57 | L19: 15.66 | M19: 33.91 | S19: 0.2T | T19: 33.7 | U19: 97 | V19: 3268.9 | W19: 冯海英 | X19: 聂恒光
A20: 16 | B20: 17:58:00 | C20: 鲁RL7377 | D20: 李斌 | E20: 常云龙 | F20: 18264007774 | G20: 李广坤 | H20: 013542 | I20: 石子 | J20: 1--2 | K20: 25.72 | L20: 8.49 | M20: 17.23 | S20: 1T | T20: 16.2 | U20: 97 | V20: 1571.4 | W20: 冯海英 | X20: 聂恒光
A21: 17 | B21: 18:00:00 | C21: 鲁RN5188 | D21: 李斌 | E21: 安孔青 | F21: 15163023899 | G21: 李广坤 | H21: 013543 | I21: 石子 | J21: 1--2 | K21: 26.83 | L21: 8.49 | M21: 18.34 | S21: 1T | T21: 17.3 | U21: 97 | V21: 1678.1 | W21: 冯海英 | X21: 聂恒光
A22: 18
A23: 19 | B23: 合计： | V23: =SUM(V5:V22) -> 133383.4
A24: 20 | M24: =K24-L24 -> 0 | V24: =T24*U24 -> 0
A25: 21 | M25: 0 | V25: 0
A26: 22 | M26: 0 | V26: 0
A27: 23 | M27: 0 | V27: 0
A28: 24 | M28: 0 | V28: 0
A29: 25 | M29: 0 | V29: 0
A30: 26 | M30: 0 | V30: 0
A31: 27 | M31: 0 | V31: 0
A32: 28 | M32: 0 | V32: 0
A33: 29 | M33: 0 | V33: 0
A34: 30 | M34: 0 | V34: 0
A35: 31 | M35: 0 | V35: 0
A36: 32 | M36: 0 | V36: 0
A37: 33 | M37: 0 | V37: 0
A38: 34 | M38: 0 | V38: 0
A39: 35 | M39: 0 | V39: 0
A40: 36 | M40: 0 | V40: 0
A41: 37 | M41: 0 | V41: 0
A42: 38 | M42: 0 | V42: 0
A43: 39 | M43: 0 | V43: 0
A44: 40 | M44: 0 | V44: 0
A45: 41 | M45: 0 | V45: 0
A46: 42 | M46: 0 | V46: =T46*U46 -> 0
A47: 43 | M47: 0 | V47: 0
A48: 44 | M48: 0 | V48: 0
A49: 45 | M49: 0 | V49: 0
A50: 46 | M50: 0 | V50: 0
A51: 47 | M51: 0 | V51: 0
A52: 48 | M52: 0 | V52: 0
A53: 49 | M53: 0 | V53: 0
A54: 50 | M54: 0 | V54: 0
A55: 51 | M55: 0 | V55: 0
A56: 52 | M56: 0 | V56: 0
A57: 53 | M57: 0 | V57: 0
A58: 54 | M58: 0 | V58: 0
A59: 55 | M59: 0 | V59: 0
A60: 56 | M60: 0 | V60: 0
A61: 57 | M61: 0 | V61: 0
A62: 58 | M62: 0 | V62: 0
A63: 59 | M63: 0 | V63: 0
A64: 60 | M64: 0 | V64: 0
A65: 61 | M65: 0 | V65: 0
A66: 62 | M66: 0 | V66: 0
A67: 63 | M67: 0 | V67: 0
A68: 64 | M68: 0 | V68: 0
A69: 65 | M69: 0 | V69: 0
A70: 66 | M70: 0 | V70: 0
A71: 67 | M71: 0 | V71: 0
A72: 68 | M72: 0 | V72: 0
A73: 合计： | T73: 0 | V73: =SUM(V5:V23) -> 266766.8
